bitfinex/quotes_ETHUSD_20241123
["timestamp","ask_amount","ask_price","bid_price","bid_amount"]
[1732343501898,0.2791749,3329.5,3329.4,0.2984]
[1732343502262,0.2791749,3329.5,3329.4,0.8484]
[1732343505217,0.8251,3330.0,3329.4,0.8484]
[1732343505504,0.279066,3329.5,3329.4,0.8484]
[1732343505701,0.279066,3329.9,3329.4,0.8484]
[1732343505884,0.279066,3329.8,3329.4,0.8484]
[1732343506087,0.279066,3329.7,3329.4,0.8484]
[1732343506290,0.279066,3329.6,3329.4,0.8484]
[1732343506464,0.279066,3329.5,3329.4,0.8484]
[1732343508866,0.765,3329.6,3329.4,0.8484]
[1732343509073,0.27903088,3329.5,3329.4,0.8484]
[1732343512607,0.27903088,3329.5,3329.4,0.2984]
[1732343513613,0.27903088,3329.5,3328.9,0.2984]
[1732343513785,0.27903088,3329.4,3328.9,0.2984]
[1732343513988,0.27903088,3329.3,3328.9,0.2984]
[1732343514287,0.27903088,3329.2,3328.9,0.2984]
[1732343514605,0.27903088,3329.1,3328.9,0.2984]
[1732343514791,0.27903088,3329.0,3328.9,0.2984]
[1732343515811,0.27886761,3329.0,3328.9,0.2984]
[1732343519669,0.765,3329.6,3328.9,0.2984]
[1732343519873,0.27874679,3329.0,3328.9,0.2984]
[1732343521618,0.765,3329.6,3328.9,0.2984]
[1732343521785,0.27887155,3329.0,3328.9,0.2984]
[1732343524907,0.27887155,3329.5,3328.9,0.2984]
[1732343525112,0.27887155,3329.4,3328.9,0.2984]
[1732343525282,0.27887155,3329.3,3328.9,0.2984]
[1732343525492,0.27887155,3329.2,3329.1,0.2984]
[1732343526116,0.27887155,3329.8,3329.1,0.2984]
[1732343526316,0.27899039,3329.7,3329.5,0.2984]
[1732343526501,0.27899039,3329.6,3329.5,0.2984]
[1732343526816,0.27899039,3330.1,3329.5,0.2984]
[1732343527022,0.27899039,3330.0,3329.5,0.2984]
[1732343527325,0.27899039,3329.9,3329.5,0.2984]
[1732343527477,0.27899039,3329.8,3329.5,0.2984]
[1732343527674,0.27899039,3329.7,3329.5,0.2984]
[1732343527877,0.27899039,3329.6,3329.5,0.2984]
[1732343528401,0.7968,3330.2,3329.5,0.2984]
[1732343528609,0.27898184,3329.6,3329.5,0.2984]
[1732343531622,0.27898184,3330.1,3329.5,0.2984]
[1732343531922,0.27898184,3330.0,3329.5,0.8484]
[1732343532094,0.27898184,3329.9,3329.5,0.8484]
[1732343532295,0.27898184,3329.8,3329.7,0.2984]
[1732343536214,0.27898184,3329.8,3329.6,0.2984]
[1732343536439,0.27898184,3329.7,3329.6,0.2984]
[1732343536599,1.07578184,3329.7,3329.6,0.2984]
[1732343537200,1.07578184,3329.7,3329.1,0.2984]
[1732343537400,0.27898184,3329.6,3329.1,0.2984]
[1732343537602,0.27898184,3329.5,3329.1,0.2984]
[1732343537846,0.27898184,3329.4,3329.1,0.2984]
[1732343538134,0.27898184,3329.3,3328.9,0.2984]
[1732343538336,0.27898184,3329.2,3328.9,0.32843423]
[1732343538546,0.27898184,3329.1,3328.9,0.2984]
[1732343538837,0.7968,3329.7,3329.0,0.8484]
[1732343539040,0.27857396,3329.6,3329.0,0.8484]
[1732343539230,0.27857396,3329.5,3329.0,1.01221]
[1732343539540,0.27857396,3329.4,3329.0,1.01221]
[1732343539786,0.27857396,3329.3,3329.0,1.01221]
[1732343539897,0.27857396,3329.2,3329.0,1.01221]
[1732343540102,0.27857396,3329.1,3329.0,1.01221]
[1732343540348,0.27857396,3329.6,3329.0,0.8484]
[1732343540506,0.27857396,3329.5,3329.0,0.8484]
[1732343540708,0.27857396,3329.4,3329.0,0.8484]
[1732343540902,0.27857396,3329.3,3329.0,1.01221]
[1732343541113,0.27857396,3329.2,3329.0,1.01221]
[1732343541312,0.27857396,3329.1,3329.0,1.01221]
[1732343541516,0.27857396,3329.1,3329.0,0.8484]
[1732343541752,0.27857396,3329.6,3329.0,0.8484]
[1732343541963,0.27857396,3329.5,3329.0,0.8484]
[1732343542252,0.27857396,3329.4,3329.0,0.8484]
[1732343542423,0.27857396,3329.3,3329.0,0.8484]
[1732343542624,0.27857396,3329.2,3329.0,0.8484]
[1732343542953,0.27857396,3329.1,3329.0,0.8484]
[1732343543114,0.27857396,3329.1,3328.8,0.7897]
[1732343543115,0.27857396,3329.1,3328.9,0.2984]
[1732343543316,0.27857396,3329.0,3328.9,0.2984]
[1732343544164,0.27857396,3329.2,3328.6,0.2984]
[1732343544364,0.27857396,3329.1,3328.6,0.67529]
[1732343544541,0.27857396,3329.0,3328.8,0.2984]
[1732343544741,0.27857396,3328.9,3328.8,0.8484]
[1732343544939,0.27857396,3329.2,3328.8,0.2984]
[1732343545141,0.27857396,3328.9,3328.8,0.8484]
[1732343545468,0.27857396,3329.2,3328.8,0.8484]
[1732343545827,0.27857396,3329.1,3328.8,0.8484]
[1732343546034,0.27857396,3329.0,3328.8,0.8484]
[1732343546372,0.27857396,3328.9,3328.8,0.8484]
[1732343546931,0.27857396,3329.2,3328.8,0.8484]
[1732343547144,0.27857396,3329.1,3328.8,0.8484]
[1732343547339,0.7998,3329.3,3328.8,0.8484]
[1732343547340,0.27857396,3329.0,3328.8,0.8484]
[1732343547540,0.27857396,3328.9,3328.8,0.8484]
[1732343547762,0.27857396,3329.2,3328.8,0.8484]
[1732343547960,0.27857396,3329.1,3328.8,0.8484]
[1732343548132,0.27857396,3329.0,3328.8,0.8484]
[1732343548331,0.27857396,3328.9,3328.8,0.2984]
[1732343549575,0.27820351,3328.9,3328.6,0.2984]
[1732343549789,0.27820351,3328.8,3328.6,0.2984]
[1732343549961,0.27820351,3328.7,3328.6,0.2984]
[1732343550465,0.27820351,3329.2,3328.6,0.2984]
[1732343550631,0.27820351,3329.1,3328.6,0.2984]
[1732343550828,0.27820351,3329.0,3328.6,0.2984]
[1732343551048,0.27820351,3328.9,3328.6,0.2984]
[1732343551286,0.27820351,3328.8,3328.6,0.2984]
[1732343551567,0.27820351,3328.7,3328.6,0.2984]
[1732343552180,0.27816524,3328.7,3328.6,0.2984]
[1732343552545,0.27816524,3329.2,3328.6,0.2984]
[1732343552748,0.27816524,3329.1,3328.6,0.2984]
[1732343552953,0.27816524,3329.0,3328.6,0.2984]
[1732343553275,0.27816524,3328.9,3328.6,0.2984]
[1732343553434,0.27816524,3328.8,3328.6,0.2984]
[1732343553635,0.7998,3329.3,3328.6,0.32843839]
[1732343553970,0.27814807,3329.2,3328.7,1.0673]
[1732343554266,0.7998,3329.7,3329.1,0.2984]
[1732343554466,0.27815729,3329.6,3329.1,0.2984]
[1732343554678,0.27815729,3329.5,3329.1,0.2984]
[1732343554909,0.27815729,3329.4,3329.1,0.2984]
[1732343555067,0.27815729,3329.3,3329.1,0.2984]
[1732343555269,0.27815729,3329.2,3329.1,0.2984]
[1732343555606,0.27815729,3329.6,3329.1,0.2984]
[1732343555810,0.27815729,3329.5,3329.1,0.2984]
[1732343555974,0.7998,3329.7,3329.1,0.2984]
[1732343555975,0.27815729,3329.4,3329.1,0.2984]
[1732343556176,0.27815729,3329.3,3329.1,0.2984]
[1732343556408,0.27815729,3329.2,3329.1,0.2984]
[1732343556577,0.7998,3329.7,3329.1,0.2984]
[1732343556785,0.27815508,3329.6,3329.1,0.2984]
[1732343557006,0.27815508,3329.5,3329.1,0.2984]
[1732343557210,0.7998,3329.7,3329.1,0.2984]
[1732343557211,0.27815508,3329.4,3329.1,0.2984]
[1732343557527,0.27815508,3329.3,3329.1,0.2984]
[1732343557826,0.27815508,3329.2,3329.1,0.2984]
[1732343557988,0.27815508,3329.6,3329.1,0.2984]
[1732343558174,0.27815508,3329.5,3329.1,0.2984]
[1732343558376,0.27815508,3329.4,3329.1,0.2984]
[1732343558625,0.27815508,3329.3,3329.2,1.0673]
[1732343558835,0.7998,3330.2,3329.4,0.2984]
[1732343559126,0.27818577,3330.1,3329.6,0.2984]
[1732343559338,0.27818577,3330.0,3329.8,0.2984]
[1732343559639,0.27818577,3329.9,3329.8,0.2984]
[1732343560310,0.7998,3330.4,3329.8,0.2984]
[1732343560311,0.27818577,3330.3,3329.8,0.2984]
[1732343560629,0.27818577,3330.2,3329.8,0.2984]
[1732343560820,0.27818577,3330.1,3329.8,0.2984]
[1732343561018,5.31,3331.8,3329.9,1.1007]
[1732343561019,0.27818577,3330.0,3329.9,1.1007]
[1732343561335,0.7649,3331.2,3330.3,0.2984]
[1732343561496,0.27812227,3331.1,3330.3,0.2984]
[1732343561696,0.27812227,3331.0,3330.4,0.03002269]
[1732343562064,0.27812227,3330.9,3330.3,0.2984]
[1732343562411,0.27812227,3330.8,3330.6,0.2984]
[1732343562556,0.27812227,3330.7,3330.5,0.8023]
[1732343562758,0.7649,3331.5,3330.5,0.8023]
[1732343562930,0.27815434,3331.4,3330.5,0.8023]
[1732343563335,0.27815434,3331.3,3330.6,0.03001955]
[1732343563531,0.27815434,3331.2,3330.5,0.8023]
[1732343563864,0.27797525,3331.1,3330.5,1.18253]
[1732343564019,0.7649,3330.9,3330.1,3.8023]
[1732343564354,0.27797525,3330.8,3330.1,0.8023]
[1732343564562,0.27797525,3330.8,3329.8,0.8023]
[1732343565058,0.7649,3330.9,3329.8,0.8023]
[1732343565059,0.27797525,3330.7,3329.8,0.8023]
[1732343565258,0.27797525,3330.6,3329.8,0.8023]
[1732343565478,0.27797525,3330.5,3329.8,0.8023]
[1732343565760,0.27797525,3330.4,3329.9,0.55]
[1732343565967,0.7649,3330.9,3329.9,0.55]
[1732343566176,0.2777726,3330.8,3329.9,0.55]
[1732343566559,0.7649,3330.6,3329.8,0.8023]
[1732343566760,0.2777726,3330.5,3329.8,0.8023]
[1732343567062,0.2777726,3330.5,3329.8,1.21237]
[1732343567365,0.2777726,3330.5,3329.8,0.8023]
[1732343567768,0.2777726,3330.5,3329.6,3.2984]
[1732343567983,0.2777726,3330.5,3329.6,3.0]
[1732343568188,0.2777726,3330.5,3329.5,0.8023]
[1732343568571,0.2777726,3330.5,3329.6,3.0]
[1732343569048,0.2777726,3330.5,3329.5,0.8023]
[1732343569784,1.0426726,3330.4,3329.5,0.8023]
[1732343569944,1.0426726,3330.4,3329.4,0.306437]
[1732343569945,0.2777726,3330.3,3329.4,0.306437]
[1732343570144,0.2777726,3330.2,3329.4,0.306437]
[1732343570372,0.2777726,3330.1,3329.4,0.306437]
[1732343570583,0.2777726,3330.0,3329.4,0.306437]
[1732343570786,0.7649,3330.4,3329.4,0.306437]
[1732343570947,0.27777142,3329.9,3329.4,0.306437]
[1732343571152,0.27777142,3330.3,3329.4,0.306437]
[1732343571396,0.27777142,3330.2,3329.4,0.306437]
[1732343571551,0.7649,3330.4,3329.4,0.306437]
[1732343571552,0.27777142,3330.1,3329.4,0.306437]
[1732343571891,0.27777142,3330.0,3329.4,0.306437]
[1732343572086,1.04267142,3329.9,3329.4,0.306437]
[1732343572396,0.27777142,3329.8,3329.4,0.306437]
[1732343572594,0.27777142,3329.8,3329.5,0.2984]
[1732343574799,0.27777603,3329.7,3329.5,0.2984]
[1732343574973,0.7649,3329.9,3329.5,0.2984]
[1732343575173,0.2777785,3329.8,3329.5,0.2984]
[1732343576195,0.2777785,3329.8,3329.5,0.32843195]
[1732343576492,0.7649,3330.3,3329.5,0.32843195]
[1732343576698,0.2778283,3330.2,3329.5,0.2984]
[1732343578502,0.27783793,3330.1,3329.5,0.2984]
[1732343578656,0.27783793,3330.0,3329.5,0.2984]
[1732343578860,0.27783793,3329.9,3329.5,0.2984]
[1732343579057,0.7649,3330.3,3329.5,0.2984]
[1732343579293,0.27787921,3330.2,3329.5,0.2984]
[1732343580263,0.27787921,3330.1,3329.5,0.2984]
[1732343580601,0.27787921,3330.0,3329.5,0.2984]
[1732343580803,0.27787921,3329.9,3329.5,0.2984]
[1732343581004,0.27787921,3330.2,3329.5,0.2984]
[1732343581217,0.27787921,3330.1,3329.5,0.2984]
[1732343581498,0.7649,3330.3,3329.5,0.2984]
[1732343581499,0.27787921,3330.2,3329.5,0.2984]
[1732343581797,0.27787921,3330.1,3329.5,0.2984]
[1732343582021,0.27787921,3330.0,3329.5,0.2984]
[1732343582175,0.27787921,3329.9,3329.5,0.2984]
[1732343582510,0.7649,3330.3,3329.7,0.2984]
[1732343582664,0.27805795,3330.2,3329.7,0.2984]
[1732343583164,0.27805795,3330.1,3329.7,0.2984]
[1732343583361,0.27805795,3330.0,3329.7,0.2984]
[1732343583667,0.75446102,3330.8,3329.7,0.2984]
[1732343583668,1.05395795,3329.9,3329.7,0.2984]
[1732343583858,0.27805795,3329.8,3329.7,0.2984]
[1732343585291,0.27805795,3329.8,3329.4,0.306437]
[1732343585596,0.27805795,3329.7,3329.4,0.306437]
[1732343585798,0.27805795,3329.6,3329.4,0.604837]
[1732343586000,0.27805795,3329.5,3329.4,0.604837]
[1732343586214,0.27805795,3329.8,3329.4,0.604837]
[1732343586525,0.27805795,3329.7,3329.5,0.85063403]
[1732343586664,0.27805795,3330.1,3329.5,1.119]
[1732343586867,0.27805795,3330.0,3329.5,1.119]
[1732343587065,0.27805795,3329.9,3329.5,1.119]
[1732343587299,0.7759,3330.2,3329.5,1.119]
[1732343587462,0.75555422,3330.5,3329.4,0.306437]
[1732343587463,0.7759,3329.7,3329.4,0.306437]
[1732343587669,0.27814193,3329.6,3329.5,0.2984]
[1732343587885,0.27814193,3329.8,3329.5,1.119]
[1732343588065,0.832,3330.8,3329.5,1.119]
[1732343588066,0.27814193,3329.7,3329.5,1.119]
[1732343588266,0.27814193,3329.6,3329.5,1.119]
[1732343588485,0.27814193,3330.0,3329.5,1.119]
[1732343588686,0.27814193,3329.9,3329.5,1.119]
[1732343588888,0.27814193,3329.8,3329.5,0.32843119]
[1732343589106,0.7759,3330.8,3329.8,0.2984]
[1732343589282,0.27827876,3330.7,3330.0,0.2984]
[1732343589463,0.27827876,3330.6,3330.2,0.2984]
[1732343589695,0.27827876,3330.5,3330.2,0.2984]
[1732343589870,0.27827876,3331.0,3330.4,0.2984]
[1732343590073,0.27830512,3330.9,3330.5,0.03002086]
[1732343590271,0.27830512,3330.8,3330.6,0.03002107]
[1732343590470,0.7759,3331.4,3330.7,0.2984]
[1732343590674,0.27821171,3331.3,3330.7,0.2984]
[1732343590894,0.27821171,3331.2,3330.7,0.2984]
[1732343591072,0.27821171,3331.1,3330.7,0.2984]
[1732343591395,0.7759,3331.4,3330.7,0.2984]
[1732343591708,0.2782171,3331.3,3330.7,0.2984]
[1732343591905,0.2782171,3331.2,3330.7,0.2984]
[1732343592079,0.2782171,3331.1,3330.7,0.2984]
[1732343592282,0.2782171,3331.0,3330.7,0.2984]
[1732343592501,0.2782171,3330.9,3330.7,0.2984]
[1732343592808,0.7759,3331.4,3330.7,0.2984]
[1732343592992,0.2780254,3331.3,3330.7,0.2984]
[1732343593315,0.2780254,3331.2,3330.7,0.2984]
[1732343593517,0.2780254,3331.1,3330.7,0.2984]
[1732343593683,0.2780254,3331.3,3330.7,0.2984]
[1732343594015,0.2780254,3331.2,3330.7,0.2984]
[1732343594199,0.2780254,3331.1,3330.7,0.2984]
[1732343594383,0.2780254,3331.3,3330.7,0.2984]
[1732343594589,0.2780254,3331.2,3330.7,0.2984]
[1732343594791,0.2780254,3331.3,3330.7,0.2984]
[1732343594985,0.2780254,3331.2,3330.7,0.2984]
[1732343595191,0.7649,3331.9,3330.9,0.2984]
[1732343595408,0.27784527,3331.8,3331.1,0.2984]
[1732343595592,0.7759,3332.4,3331.4,0.2984]
[1732343595593,1.09844527,3332.3,3331.4,0.2984]
[1732343595778,0.27784527,3332.2,3331.4,0.32841189]
[1732343595979,0.27784527,3332.1,3331.4,0.32841189]
[1732343596177,0.27784527,3332.0,3331.5,0.8206]
[1732343596381,0.7759,3332.4,3331.5,0.8206]
[1732343596612,0.27761652,3332.3,3331.5,0.8206]
[1732343598039,0.27736845,3332.2,3331.5,0.8206]
[1732343598176,0.27736845,3332.1,3331.5,0.8206]
[1732343598381,0.7759,3332.4,3331.5,0.8206]
[1732343598683,0.2772002,3332.3,3331.5,0.8206]
[1732343599703,0.7759,3332.6,3331.5,0.8206]
[1732343599881,0.27706817,3332.5,3331.5,0.8206]
[1732343600383,0.27706817,3332.5,3331.6,0.03001172]
[1732343600803,0.27706817,3332.5,3331.2,0.7915]
[1732343601122,0.27706817,3332.5,3331.4,1.0899]
[1732343601329,0.7599,3332.9,3331.5,0.82150756]
[1732343601478,0.27694935,3332.8,3331.8,1.0899]
[1732343601683,0.27694935,3332.8,3331.9,0.82150758]
[1732343601893,0.27694935,3332.7,3331.9,0.82150758]
[1732343602221,1.5358,3333.2,3331.9,0.82150758]
[1732343602428,0.43039411,3333.1,3331.9,0.82150758]
[1732343602588,0.27681411,3333.0,3331.9,0.7915]
[1732343606412,0.15358,3333.1,3331.9,0.7915]
[1732343607551,0.15358,3333.1,3332.0,0.2984]
[1732343607724,0.168938,3333.0,3332.0,0.2984]
[1732343608556,0.7886,3332.9,3332.0,0.2984]
[1732343612240,1.5645,3333.2,3332.1,0.82]
[1732343612411,1.5645,3333.2,3332.1,1.1184]
[1732343612614,0.15645,3333.1,3332.1,1.1184]
[1732343614123,0.15645,3333.1,3332.3,0.2984]
[1732343614320,1.5645,3333.2,3332.5,0.2984]
[1732343614321,0.7759,3333.2,3332.5,0.2984]
[1732343618330,0.27731032,3333.1,3332.5,0.2984]
[1732343618971,0.22731032,3333.1,3332.5,0.2984]
[1732343619183,0.7759,3333.2,3332.5,0.2984]
[1732343622165,0.7759,3333.2,3332.4,0.82]
[1732343622166,0.7759,3333.2,3332.0,0.2984]
[1732343622361,1.56001649,3333.7,3332.5,0.2984]
[1732343622671,0.745196,3333.6,3332.7,0.2984]
[1732343625271,0.745196,3333.6,3333.1,0.2984]
[1732343625574,0.745196,3333.6,3333.3,0.755]
[1732343625732,0.75464685,3334.2,3333.3,0.755]
[1732343625932,0.7766,3334.3,3333.3,0.755]
[1732343626284,0.7766,3334.1,3333.3,0.755]
[1732343627649,0.7766,3334.1,3332.7,0.2984]
[1732343627650,0.7766,3334.6,3333.5,0.755]
[1732343628360,2.30050572,3334.6,3333.5,0.755]
[1732343628577,1.5532,3334.6,3333.5,0.755]
[1732343630851,0.27810873,3334.5,3333.5,0.755]
[1732343631158,0.4612396,3334.4,3333.5,0.755]
[1732343631363,0.27810873,3334.3,3333.5,0.755]
[1732343631574,0.27810873,3334.2,3333.5,0.755]
[1732343631754,0.27810873,3334.1,3333.5,0.755]
[1732343631954,0.27810873,3334.0,3333.5,0.755]
[1732343632178,0.27810873,3333.9,3333.5,0.755]
[1732343632366,0.18313087,3334.4,3333.5,0.755]
[1732343632568,0.27799207,3334.3,3333.5,0.755]
[1732343633097,0.7766,3334.6,3333.5,0.755]
[1732343633383,0.27802295,3334.5,3333.5,0.755]
[1732343634581,0.27802295,3334.4,3333.5,0.755]
[1732343634785,0.27802295,3334.6,3333.5,0.755]
[1732343634952,0.27802295,3334.5,3333.5,0.755]
[1732343635150,0.27802295,3334.4,3333.7,0.755]
[1732343635351,0.27802295,3334.3,3333.7,0.755]
[1732343635556,0.27802295,3334.2,3333.7,0.755]
[1732343635879,0.73272644,3334.7,3333.7,0.755]
[1732343636082,0.43305965,3334.6,3333.7,0.755]
[1732343636397,0.27774029,3334.5,3333.7,0.755]
[1732343636691,0.27774029,3334.4,3333.7,0.755]
[1732343636867,0.27774029,3334.3,3333.7,0.755]
[1732343637069,0.27774029,3334.2,3333.7,0.755]
[1732343637391,1.53275578,3334.9,3333.7,1.1305]
[1732343637622,0.27767203,3334.8,3333.7,0.755]
[1732343638600,1.05427203,3334.7,3333.7,0.755]
[1732343638779,0.27767203,3334.6,3333.7,0.755]
[1732343639278,0.27767203,3334.5,3333.7,0.755]
[1732343639453,0.27767203,3334.4,3333.7,0.755]
[1732343639656,0.7766,3334.7,3333.7,0.755]
[1732343639657,0.16860314,3334.6,3333.7,0.755]
[1732343639858,0.27766076,3334.3,3333.7,0.755]
[1732343640088,0.27766076,3334.5,3333.7,0.755]
[1732343640362,0.27766076,3334.4,3333.7,0.755]
[1732343640551,0.27766076,3334.3,3333.7,0.755]
[1732343640801,0.27766076,3334.2,3333.7,0.755]
[1732343641096,0.27766076,3334.1,3333.7,0.755]
[1732343641305,0.27766076,3334.0,3333.7,0.755]
[1732343641478,0.27766076,3333.9,3333.7,0.755]
[1732343641681,0.16860314,3334.6,3333.7,0.755]
[1732343641883,0.2777636,3334.5,3333.7,0.755]
[1732343642088,0.16860314,3334.6,3333.7,0.755]
[1732343642503,0.27777072,3334.4,3333.7,0.755]
[1732343642711,0.27784037,3334.3,3333.7,0.755]
[1732343643206,0.27784037,3334.3,3333.8,0.2984]
[1732343643393,0.27784037,3334.3,3333.9,0.8022]
[1732343644800,0.27784037,3334.2,3333.9,0.8022]
[1732343645000,0.27784037,3334.1,3333.9,0.8022]
[1732343645172,0.27784037,3334.0,3333.9,0.8022]
[1732343645373,0.27784037,3334.6,3333.9,0.8022]
[1732343645599,0.27790221,3334.5,3333.9,0.8022]
[1732343645766,0.27790221,3334.4,3333.9,0.8022]
[1732343645971,0.27790221,3334.3,3333.9,0.8022]
[1732343646282,0.27790221,3334.2,3333.9,0.8022]
[1732343646476,0.27790221,3334.1,3333.9,0.8022]
[1732343646674,0.27790221,3334.0,3333.9,0.8022]
[1732343647378,0.27790221,3334.6,3333.9,0.8022]
[1732343647573,0.27790221,3334.5,3333.9,1.1006]
[1732343647911,0.27790221,3334.4,3333.9,1.1006]
[1732343648099,0.27790221,3334.3,3333.9,1.1006]
[1732343648469,0.27790221,3334.2,3333.9,1.1006]
[1732343648669,0.96428995,3334.7,3333.9,1.1006]
[1732343648670,0.27790221,3334.1,3333.9,1.1006]
[1732343648882,0.27790221,3334.0,3333.9,1.1006]
[1732343649075,0.27790221,3334.6,3333.9,1.1006]
[1732343649383,0.27790221,3334.5,3333.9,1.1006]
[1732343649614,0.27790221,3334.4,3333.9,1.1006]
[1732343649915,0.27790221,3334.3,3333.9,1.1006]
[1732343650117,0.27790221,3334.2,3333.9,1.1006]
[1732343650278,0.27790221,3334.1,3333.9,1.1006]
[1732343650484,0.27790221,3334.0,3333.9,1.1006]
[1732343650709,0.27790221,3334.6,3333.9,1.1006]
[1732343650926,0.27790221,3334.5,3333.9,1.1006]
[1732343651080,0.27790221,3334.4,3333.9,1.1006]
[1732343651414,0.27790221,3334.3,3333.9,1.1006]
[1732343651716,0.27790221,3334.2,3333.9,1.1006]
[1732343652013,0.27790221,3334.1,3333.9,1.1006]
[1732343652224,0.27790221,3334.0,3333.9,1.1006]
[1732343652555,0.27790221,3334.0,3332.3,0.2984]
[1732343652717,0.27790221,3334.0,3333.2,1.1006]
[1732343652718,0.27848379,3334.0,3333.2,1.1006]
[1732343652904,0.8075,3334.2,3333.2,1.1006]
[1732343652905,0.27848379,3333.9,3333.2,1.1006]
[1732343653223,0.8075,3334.2,3333.2,1.1006]
[1732343653224,0.27848379,3333.8,3333.2,1.1006]
[1732343653384,0.27848379,3333.7,3333.2,1.1006]
[1732343653787,0.27848379,3333.6,3333.2,1.1006]
[1732343653988,0.27848379,3333.5,3333.2,1.1006]
[1732343654310,0.27848379,3333.4,3333.3,0.8022]
[1732343654632,0.27848379,3334.1,3333.3,0.8022]
[1732343654802,0.27848379,3334.0,3333.3,0.8022]
[1732343655126,0.27848379,3333.9,3333.3,0.8022]
[1732343655303,0.27848379,3333.8,3333.3,0.8022]
[1732343655504,0.27848379,3333.7,3333.3,0.8022]
[1732343655726,0.27848379,3333.6,3333.3,0.8022]
[1732343655932,0.27848379,3333.5,3333.3,0.8022]
[1732343656134,0.27848379,3333.4,3333.3,0.8022]
[1732343657595,0.27848379,3333.4,3333.3,1.1006]
[1732343659033,0.8075,3334.5,3333.4,0.8022]
[1732343659327,0.27886392,3334.4,3333.4,0.8022]
[1732343659529,0.27886392,3334.3,3333.6,0.8022]
[1732343659715,0.27886392,3334.3,3333.6,1.1006]
[1732343659917,0.27886392,3334.2,3333.6,1.1006]
[1732343660127,0.27886392,3334.1,3333.6,1.1006]
[1732343660329,0.8075,3334.7,3333.7,0.8022]
[1732343660330,0.27886392,3334.0,3333.7,0.8022]
[1732343660536,0.27886392,3333.9,3333.7,0.8022]
[1732343660712,0.27886392,3333.8,3333.7,0.8022]
[1732343662530,0.27886392,3333.8,3333.7,1.48096]
[1732343662744,0.27886392,3333.8,3333.6,0.02999067]
[1732343662745,0.8058,3335.0,3334.1,0.2984]
[1732343663202,0.27881187,3334.9,3334.1,0.2984]
[1732343663409,0.27881187,3334.8,3334.1,0.2984]
[1732343663729,0.27881187,3334.7,3334.1,0.2984]
[1732343663907,0.27881187,3334.6,3334.1,0.2984]
[1732343664105,0.27881187,3334.5,3334.1,0.2984]
[1732343664305,0.15435717,3334.9,3334.1,0.2984]
[1732343664306,0.27881187,3334.4,3334.1,0.2984]
[1732343664507,0.27881187,3334.3,3334.1,0.2984]
[1732343664709,0.27881187,3334.2,3334.1,0.2984]
[1732343666627,0.8058,3335.0,3334.1,0.2984]
[1732343666964,0.43298327,3334.9,3334.1,0.2984]
[1732343667105,0.2786261,3334.8,3334.1,0.2984]
[1732343667311,0.2786261,3334.7,3334.1,0.2984]
[1732343667509,0.2786261,3334.6,3334.1,0.2984]
[1732343667713,0.2786261,3334.5,3334.1,0.2984]
[1732343668016,0.15435717,3334.9,3334.1,0.2984]
[1732343668017,0.2786261,3334.4,3334.1,0.2984]
[1732343668216,0.2786261,3334.3,3334.1,0.2984]
[1732343668420,0.2786261,3334.2,3334.1,0.2984]
[1732343670825,0.8058,3335.0,3334.1,0.2984]
[1732343670826,0.2786261,3334.9,3334.1,0.2984]
[1732343671037,0.2786261,3334.8,3334.1,0.2984]
[1732343671237,0.2786261,3334.7,3334.1,0.2984]
[1732343671515,0.2786261,3334.6,3334.1,0.2984]
[1732343671718,0.2786261,3334.5,3334.1,0.2984]
[1732343671961,0.2786261,3334.4,3334.1,0.2984]
[1732343672252,0.2786261,3334.3,3334.1,0.2984]
[1732343672452,0.2786261,3334.2,3334.1,0.2984]
[1732343673711,0.8058,3335.0,3334.1,0.2984]
[1732343673909,0.27839119,3334.2,3334.1,0.2984]
[1732343674526,0.27839119,3334.9,3334.1,0.2984]
[1732343674720,0.27839119,3334.8,3334.1,0.2984]
[1732343674938,0.27839119,3334.7,3334.1,0.2984]
[1732343675127,0.27839119,3334.6,3334.1,0.2984]
[1732343675327,0.27839119,3334.5,3334.1,0.2984]
[1732343675653,0.27839119,3334.4,3334.1,0.2984]
[1732343675852,0.27839119,3334.3,3334.1,0.2984]
[1732343676018,0.27839119,3334.2,3334.1,0.2984]
[1732343676219,0.27839119,3334.9,3334.1,0.2984]
[1732343676417,0.27839119,3334.8,3334.1,0.2984]
[1732343676647,0.27839119,3334.7,3334.1,0.2984]
[1732343676948,0.27839119,3334.6,3334.1,0.2984]
[1732343677154,0.27839119,3334.5,3334.1,0.2984]
[1732343677311,0.19763201,3334.9,3334.1,0.2984]
[1732343677516,0.27833457,3334.8,3334.1,0.2984]
[1732343677751,0.27833457,3334.7,3334.1,0.2984]
[1732343677952,0.27833457,3334.6,3334.1,0.2984]
[1732343678128,0.27833457,3334.5,3334.1,0.2984]
[1732343678329,0.27833457,3334.4,3334.1,0.2984]
[1732343678544,0.27833457,3334.3,3334.1,0.2984]
[1732343678727,0.27833457,3334.2,3334.1,0.2984]
[1732343679428,0.27833457,3334.9,3334.1,0.2984]
[1732343679641,0.27833457,3334.8,3334.1,0.2984]
[1732343679835,0.27833457,3334.7,3334.1,0.2984]
[1732343680064,0.15435717,3334.9,3334.1,0.2984]
[1732343680065,0.27833457,3334.6,3334.1,0.2984]
[1732343680359,0.27833457,3334.5,3334.1,0.2984]
[1732343680664,0.27833457,3334.4,3334.1,0.2984]
[1732343680821,0.27824963,3334.3,3334.1,0.2984]
[1732343681026,0.27824963,3334.2,3334.1,0.2984]
[1732343681856,0.27824963,3334.9,3334.1,0.2984]
[1732343682161,0.27824963,3334.8,3334.1,0.2984]
[1732343682366,0.27824963,3334.7,3334.1,0.2984]
[1732343682661,0.27824963,3334.6,3334.1,0.2984]
[1732343682965,0.27816271,3334.5,3334.1,0.2984]
[1732343683171,0.27816271,3334.4,3334.1,0.2984]
[1732343683469,0.27816271,3334.3,3334.1,0.2984]
[1732343683639,0.27816271,3334.2,3334.1,0.2984]
[1732343684375,0.27829951,3334.2,3334.1,0.2984]
[1732343684659,0.27833138,3334.2,3334.1,0.2984]
[1732343687133,0.27833138,3334.2,3333.9,0.2984]
[1732343687341,0.8058,3335.0,3334.3,0.2984]